bitfinex-derivatives/quotes_BNBF0:USTF0_20230831
["timestamp","ask_amount","ask_price","bid_price","bid_amount"]
[1693514807955,5.02324542,217.2,216.54,0.50247001]
[1693514808261,0.07534868,217.01,216.69,0.0753705]
[1693514808462,0.07534868,217.0,216.7,0.1801746]
[1693514810166,0.07534868,217.0,216.7,0.2555451]
[1693514810366,0.07534868,217.0,216.71,0.1801746]
[1693514810766,0.07534868,216.99,216.71,0.1801746]
[1693514811860,0.07534868,216.98,216.71,0.2555451]
[1693514812067,0.07534868,216.98,216.72,0.1801746]
[1693514813863,0.07534868,216.97,216.72,0.2555451]
[1693514814061,0.07534868,216.97,216.73,0.1801746]
[1693514814761,0.07534868,216.96,216.73,0.1801746]
[1693514814965,0.07534868,216.96,216.73,0.2555451]
[1693514815163,0.07534868,216.96,216.74,0.1801746]
[1693514815661,0.07534868,216.96,216.74,0.2555451]
[1693514815865,0.07534868,216.96,216.75,0.1801746]
[1693514824078,0.07534868,216.95,216.75,0.1801746]
[1693514826880,0.07534868,216.95,216.75,0.2555451]
[1693514827078,0.07534868,216.95,216.76,0.1801746]
[1693514827574,0.07534868,216.95,216.75,0.1801746]
[1693514827780,0.07534868,216.95,216.76,0.1799595]
[1693514827981,0.07534868,216.95,216.75,0.25533]
[1693514828280,0.07534868,216.95,216.76,0.1799598]
[1693514831479,0.07534868,216.9,216.69,0.0753705]
[1693514831675,0.07534868,216.89,216.7,0.18021389]
[1693514831881,0.07534868,216.91,216.7,0.18021389]
[1693514832079,0.07534868,216.91,216.66,0.0753705]
[1693514832277,0.07534868,216.91,216.67,0.18021313]
[1693514832878,0.07534868,216.92,216.67,0.18021313]
[1693514833184,0.07534868,216.92,216.68,0.18021313]
[1693514833376,0.07534868,216.92,216.66,0.18021313]
[1693514833581,0.07534868,216.92,216.67,0.18021313]
[1693514833784,0.07534868,216.92,216.66,0.18021313]
[1693514833981,0.07534868,216.93,216.67,0.18021313]
[1693514834184,0.07534868,216.93,216.68,0.18021313]
[1693514834383,0.07534868,216.93,216.65,0.18021313]
[1693514834687,0.07534868,216.93,216.66,0.18021313]
[1693514834884,0.07534868,216.94,216.65,0.18021313]
[1693514835185,0.07534868,216.94,216.66,0.18021313]
[1693514835383,0.07534868,216.94,216.64,0.18021313]
[1693514835583,0.07534868,216.94,216.65,0.18021313]
[1693514835786,0.07534868,216.94,216.64,0.18021313]
[1693514836085,0.07534868,216.94,216.65,0.18021313]
[1693514836285,0.07534868,216.94,216.64,0.18021313]
[1693514836485,0.07534868,216.94,216.65,0.18021313]
[1693514836686,0.07534868,216.94,216.64,0.18021313]
[1693514836880,0.07534868,216.95,216.65,0.18021313]
[1693514837079,0.07534868,216.95,216.66,0.18021313]
[1693514837287,0.07534868,216.95,216.62,0.0753705]
[1693514837288,0.07534868,216.95,216.63,0.18021313]
[1693514837487,0.07534868,216.95,216.64,0.18021313]
[1693514837787,0.07534868,216.95,216.65,0.18021313]
[1693514837986,0.07534868,216.95,216.66,0.18021313]
[1693514838187,0.07534868,216.95,216.67,0.18021313]
[1693514838388,0.07534868,216.95,216.63,0.18021313]
[1693514838587,0.07534868,216.95,216.64,0.18021313]
[1693514838788,0.07534868,216.95,216.63,0.18021313]
[1693514838990,0.07534868,216.95,216.64,0.18021313]
[1693514839189,0.07534868,216.95,216.63,0.18021313]
[1693514839389,0.07534868,216.95,216.64,0.18021313]
[1693514839589,0.07534868,216.95,216.65,0.18021313]
[1693514839791,0.07534868,216.96,216.66,0.18021313]
[1693514839990,0.07534868,216.96,216.67,0.18021313]
[1693514840289,0.07534868,216.96,216.68,0.18021313]
[1693514840492,0.07534868,216.96,216.62,0.18021313]
[1693514840691,0.07534868,216.96,216.63,0.18021313]
[1693514840992,0.07534868,216.96,216.64,0.18021313]
[1693514841187,0.07534868,216.96,216.62,0.18021313]
[1693514841388,0.07534868,216.96,216.63,0.18021313]
[1693514841588,0.07534868,216.96,216.62,0.18021313]
[1693514841786,0.07534868,216.96,216.63,0.18021313]
[1693514841985,0.07534868,216.96,216.64,0.18021313]
[1693514842188,0.07534868,216.96,216.65,0.18021313]
[1693514842385,0.07534868,216.96,216.62,0.18021313]
[1693514842591,0.07534868,216.96,216.63,0.18021313]
[1693514842788,0.07534868,216.96,216.62,0.18021313]
[1693514842988,0.07534868,216.96,216.61,0.0753705]
[1693514842989,0.07534868,216.96,216.63,0.18021313]
[1693514843192,0.07534868,216.96,216.62,0.18021313]
[1693514843394,0.07534868,216.96,216.63,0.18021313]
[1693514843597,0.07534868,216.96,216.64,0.18021313]
[1693514843790,0.07534868,216.96,216.62,0.18021313]
[1693514843991,0.07534868,216.96,216.63,0.18021313]
[1693514844294,0.07534868,216.96,216.64,0.18021313]
[1693514844601,0.07534868,216.96,216.65,0.18021313]
[1693514844795,0.07534868,216.96,216.66,0.18021313]
[1693514844994,0.07534868,216.96,216.67,0.18021313]
[1693514845191,0.07534868,216.96,216.61,0.18021313]
[1693514845390,0.07534868,216.96,216.62,0.18021313]
[1693514845593,0.07534868,216.96,216.61,0.18021313]
[1693514845790,0.07534868,216.96,216.62,0.18021313]
[1693514845990,0.07534868,216.96,216.63,0.18021313]
[1693514846189,0.07534868,216.96,216.64,0.18021313]
[1693514846391,0.07534868,216.96,216.65,0.18021313]
[1693514846594,0.07534868,216.96,216.6,0.18021313]
[1693514846792,0.07534868,216.96,216.61,0.18021313]
[1693514847094,0.07534868,216.96,216.62,0.18021313]
[1693514847294,0.07534868,216.96,216.63,0.18021313]
[1693514847492,0.07534868,216.96,216.6,0.18021313]
[1693514847693,0.07534868,216.96,216.61,0.18021313]
[1693514847893,0.07534868,216.96,216.62,0.18021313]
[1693514848089,0.07534868,216.96,216.6,0.18021313]
[1693514853899,0.07534868,216.95,216.6,0.25558363]
[1693514854097,0.07534868,216.95,216.61,0.18021313]
[1693514858403,0.07534868,216.94,216.61,0.18021313]
[1693514859002,0.07534868,216.94,216.61,0.25558363]
[1693514859201,0.07534868,216.94,216.62,0.18021313]
[1693514859397,0.07534868,216.94,216.61,0.18021313]
[1693514859600,0.07534868,216.94,216.62,0.18021313]
[1693514859799,0.07534868,216.93,216.63,0.18021313]
[1693514860002,0.07534868,216.93,216.61,0.25558363]
[1693514860202,0.07534868,216.93,216.62,0.18021313]
[1693514861799,0.07534868,216.92,216.62,0.25558363]
[1693514862004,0.07534868,216.92,216.63,0.18021313]
[1693514862607,0.07534868,216.92,216.64,0.18021313]
[1693514862907,0.07534868,216.92,216.65,0.18021313]
[1693514863106,0.07534868,216.92,216.66,0.18021313]
[1693514863304,0.07534868,216.92,216.63,0.18021313]
[1693514863504,0.07534868,216.92,216.64,0.18021313]
[1693514863807,0.07534868,216.91,216.65,0.18021313]
[1693514864007,0.07534868,216.91,216.66,0.18021313]
[1693514864307,0.07534868,216.91,216.67,0.18021313]
[1693514864499,0.07534868,216.91,216.68,0.18021313]
[1693514864703,0.07534868,216.91,216.63,0.0753705]
[1693514864903,0.07534868,216.9,216.64,0.25560188]
[1693514865106,0.07534868,216.9,216.65,0.18023138]
[1693514866007,0.07534868,216.88,216.66,0.0753705]
[1693514866206,0.07534868,216.88,216.67,0.18023138]
[1693514871213,0.07534868,216.88,216.67,0.25560188]
[1693514871414,0.07534868,216.88,216.68,0.18023138]
[1693514872108,0.07534868,216.89,216.68,0.18023138]
[1693514872914,0.07534868,216.89,216.68,0.25560188]
[1693514873108,0.07534868,216.89,216.69,0.18023138]
[1693514875012,0.07534868,216.89,216.67,0.0753705]
[1693514875209,0.07534868,216.89,216.68,0.18019374]
[1693514875712,0.07534868,216.89,216.68,0.25556424]
[1693514875913,0.07534868,216.89,216.69,0.18019374]
[1693514876314,0.07534868,216.89,216.67,0.0753705]
[1693514876516,0.07534868,216.89,216.68,0.25556601]
[1693514876719,0.07534868,216.89,216.69,0.18019551]
[1693514881417,0.07534868,216.9,216.69,0.18019551]
[1693514881716,0.07534868,216.89,216.69,0.18019551]
[1693514886018,0.07534868,216.9,216.69,0.18019551]
[1693514886619,0.07534868,216.88,216.69,0.18019551]
[1693514887017,0.07534868,216.88,216.68,0.18019551]
[1693514887219,0.07534868,216.88,216.67,0.18019551]
[1693514887419,0.07534868,216.88,216.68,0.18022116]
[1693514887619,0.07534868,216.88,216.66,0.0753705]
[1693514887620,0.07534868,216.88,216.67,0.18022116]
[1693514887922,0.07534868,216.88,216.68,0.18021544]
[1693514888122,0.07534868,216.88,216.67,0.18021544]
[1693514895925,0.07541585,216.88,216.67,0.18021544]
[1693514897618,0.07541585,216.89,216.67,0.18021544]
[1693514901728,0.07541585,216.88,216.67,0.18021544]
[1693514902934,0.07541585,216.89,216.67,0.18021544]
[1693514907637,0.07541585,216.88,216.67,0.18021544]
[1693514918853,0.07541585,216.87,216.67,0.18021544]
[1693514928557,0.07541585,216.87,216.67,0.2558118]
[1693514928855,0.07541585,216.87,216.68,0.18021544]
[1693514931058,0.07541585,216.88,216.68,0.18021544]
[1693514931257,0.07541585,216.88,216.68,0.2558118]
[1693514931458,0.07541585,216.89,216.69,0.18021544]
[1693514934453,0.07541585,216.89,216.67,0.07559636]
[1693514934652,0.07541585,216.89,216.68,0.18021791]
[1693514946964,0.07541585,216.89,216.69,0.18021791]
[1693514947171,0.07541585,216.89,216.67,0.18021791]
[1693514948669,0.07541585,216.88,216.67,0.18021791]
[1693514948869,0.07541585,216.87,216.67,0.18021791]
[1693514949072,0.07541585,216.87,216.66,0.18021791]
[1693514949271,0.07541585,216.87,216.67,0.1802834]
[1693514949467,0.07541585,216.87,216.65,0.07559636]
[1693514949672,0.07541585,216.87,216.66,0.18027974]
[1693514949874,0.07541585,216.87,216.67,0.18027974]
[1693514950074,0.07541585,216.87,216.65,0.07559636]
[1693514950270,0.07541585,216.87,216.66,0.18027716]
[1693514950774,0.07541585,216.87,216.67,0.18027716]
[1693514951174,0.07541585,216.87,216.64,0.07559636]
[1693514951371,0.07541585,216.87,216.65,0.18030112]
[1693514953580,0.07541585,216.87,216.41,1.00795152]
[1693514953581,0.07541585,216.83,216.56,0.07559636]
[1693514953782,0.07541585,216.83,216.57,0.18053631]
[1693514954681,0.07541585,216.84,216.57,0.18053631]
[1693514954880,0.07541585,216.84,216.56,0.18053631]
[1693514955076,0.07541585,216.84,216.57,0.18053631]
[1693514955281,0.07541585,216.84,216.56,0.18053631]
[1693514955483,0.07541585,216.85,216.57,0.18053631]
[1693514955682,0.07541585,216.85,216.58,0.18053631]
[1693514955882,0.07541585,216.85,216.59,0.18053631]
[1693514956078,0.07541585,216.85,216.55,0.18053631]
[1693514956382,0.07541585,216.85,216.56,0.18053631]
[1693514956583,0.07541585,216.86,216.55,0.18053631]
[1693514956885,0.07541585,216.85,216.56,0.18053631]
[1693514957084,0.07541585,216.85,216.52,0.18053631]
[1693514957283,0.07541585,216.85,216.53,0.18053631]
[1693514957477,0.07541585,216.85,216.52,0.18053631]
[1693514957683,0.07541585,216.86,216.53,0.18053631]
[1693514957882,0.07541585,216.86,216.52,0.18053631]
[1693514958084,0.07541585,216.86,216.53,0.18053631]
[1693514958277,0.07541585,216.86,216.51,0.25613267]
[1693514958584,0.07541585,216.86,216.52,0.18053631]
[1693514958784,0.07541585,216.86,216.51,0.18053631]
[1693514958984,0.07541585,216.86,216.53,0.18053631]
[1693514959381,0.07541585,216.86,216.52,0.18053631]
[1693514959582,0.07541585,216.86,216.27,1.00795152]
[1693514959583,0.07541585,216.87,216.54,0.18053631]
[1693514959884,0.07541585,216.87,216.55,0.18053631]
[1693514960084,0.07541585,216.87,216.56,0.18053631]
[1693514960285,0.07541585,216.87,216.57,0.18053631]
[1693514960486,0.07541585,216.87,216.58,0.18053631]
[1693514960679,0.07541585,216.87,216.59,0.18053631]
[1693514960880,0.07541585,216.87,216.48,0.07559636]
[1693514961082,0.07541585,216.87,216.49,0.18053619]
[1693514961484,0.07541585,216.88,216.49,0.18053619]
[1693514962583,0.07541585,216.89,216.49,0.18053619]
[1693514962786,0.07541585,216.89,216.48,0.18053619]
[1693514962986,0.07541585,216.89,216.49,0.18053619]
[1693514963182,0.07541585,216.89,216.5,0.18053619]
[1693514963390,0.07541585,216.89,216.51,0.18053619]
[1693514963585,0.07541585,216.89,216.52,0.18053619]
[1693514963783,0.07541585,216.89,216.48,0.18053619]
[1693514965783,0.07541585,216.89,216.47,0.18053619]
[1693514968792,0.07541585,216.9,216.47,0.18053619]
[1693514969095,0.07541585,216.9,216.47,0.25613255]
[1693514969290,0.07541585,216.9,216.48,0.18053619]
[1693514970592,0.07541585,216.89,216.48,0.18053619]
[1693514971085,0.07541585,216.89,216.49,0.18053619]
[1693514971286,0.07541585,216.89,216.5,0.18053619]
[1693514971486,0.07541585,216.89,216.51,0.18053619]
[1693514971689,0.07541585,216.89,216.52,0.18053619]
[1693514971890,0.07541585,216.89,216.47,0.18053619]
[1693514972090,0.07541585,216.89,216.48,0.18053619]
[1693514972289,0.07541585,216.89,216.47,0.18053619]
[1693514972494,0.07541585,216.88,216.48,0.18053619]
[1693514972694,0.07541585,216.88,216.47,0.18053619]
[1693514972895,0.07541585,216.88,216.48,0.18053619]
[1693514973194,0.07541585,216.88,216.49,0.18053619]
[1693514973489,0.07541585,216.88,216.5,0.18053619]
[1693514973687,0.07541585,216.88,216.51,0.18053619]
[1693514973893,0.07541585,216.88,216.23,1.00795152]
[1693514974195,0.07504867,216.88,216.48,0.18053619]
[1693514974395,0.07504867,216.88,216.47,0.18053619]
[1693514975798,0.07504867,216.88,216.47,0.25578335]
[1693514975996,0.07504867,216.88,216.48,0.18053619]
[1693514976895,0.07504867,216.87,216.48,0.18053619]
[1693514978397,0.07504867,216.86,216.48,0.18053619]
[1693514979199,0.07504867,216.87,216.48,0.18053619]
[1693514979396,0.07504867,216.87,216.48,0.25578335]
[1693514979595,0.07504867,216.86,216.49,0.18053619]
[1693514980499,0.07504867,216.85,216.49,0.25578335]
[1693514980699,0.07504867,216.85,216.5,0.18053619]
[1693514981497,0.07504867,216.84,216.5,0.25578335]
[1693514981695,0.07504867,216.84,216.51,0.18053619]
[1693514982599,0.07504867,216.82,216.51,0.25578335]
[1693514982800,0.07504867,216.82,216.52,0.18053619]
[1693514984600,0.07504867,216.81,216.52,0.25578335]
[1693514984799,0.07504867,216.81,216.53,0.18053619]
[1693514985501,0.07504867,216.8,216.53,0.25578335]
[1693514985696,0.07504867,216.8,216.54,0.18053619]
[1693514987498,0.07504867,216.78,216.55,0.07524716]
[1693514987700,0.07504867,216.78,216.56,0.18053619]
[1693514988503,0.07504867,216.78,216.56,0.25578335]
[1693514988703,0.07504867,216.78,216.57,0.18053619]
[1693514991198,0.07504867,216.78,216.57,0.25578335]
[1693514991398,0.07504867,216.78,216.58,0.18053619]
[1693514992505,0.07504867,216.79,216.58,0.18053619]
[1693514994108,0.07504867,216.79,216.58,0.25578335]
[1693514994307,0.07504867,216.79,216.59,0.18053619]
[1693514995509,0.07504867,216.8,216.59,0.18053619]
[1693514998205,0.07504867,216.79,216.59,0.18053619]
[1693514998408,0.07504867,216.8,216.57,0.07524716]
[1693514998610,0.07504867,216.8,216.58,0.18053181]
[1693514999810,0.07504867,216.8,216.58,0.25577897]
[1693515000011,0.07504867,216.8,216.59,0.18053181]
[1693515004313,0.07504867,216.8,216.58,0.18053181]
[1693515004620,0.07504867,216.8,216.59,0.18053181]
[1693515004819,0.07504867,216.8,216.6,0.18053181]
[1693515005019,0.07504867,216.8,216.58,0.18053181]
[1693515005220,0.07504867,216.8,216.59,0.18052838]
[1693515005415,0.07504867,216.8,216.57,0.07524716]
[1693515005617,0.07504867,216.8,216.58,0.18053214]
[1693515006519,0.07504867,216.79,216.58,0.18053214]
[1693515006718,0.07504867,216.79,216.57,0.18053214]
[1693515006917,0.07504867,216.79,216.56,0.07524716]
[1693515006918,0.07504867,216.79,216.58,0.18056914]
[1693515007119,0.07504867,216.79,216.57,0.18056914]
[1693515011324,0.07504867,216.78,216.55,0.07524716]
[1693515011520,0.07504867,216.78,216.56,0.18058937]
[1693515012622,0.07504867,216.79,216.56,0.18058937]
[1693515013123,0.07504867,216.78,216.56,0.18058937]
[1693515013622,0.07504867,216.79,216.56,0.18058937]
[1693515014221,0.07504867,216.78,216.56,0.18058937]
[1693515014618,0.07504867,216.79,216.56,0.18058937]
[1693515014820,0.07504867,216.79,216.55,0.18058937]
[1693515015023,0.07504867,216.79,216.54,0.07524716]
[1693515015024,0.07504867,216.78,216.56,0.18058937]
[1693515015324,0.07504867,216.78,216.57,0.18058937]
[1693515015522,0.07504867,216.78,216.55,0.18058937]
[1693515015723,0.07504867,216.79,216.55,0.18058937]
[1693515016723,0.07504867,216.78,216.55,0.18058937]
[1693515017123,0.07504867,216.78,216.54,0.18058937]
[1693515017324,0.07504867,216.78,216.55,0.18058937]
[1693515017522,0.07504867,216.78,216.54,0.18058937]
[1693515017927,0.07504867,216.79,216.54,0.25583653]
[1693515018226,0.07504867,216.79,216.55,0.18058937]
[1693515018427,0.07504867,216.78,216.55,0.18058937]
[1693515018627,0.07504867,216.78,216.54,0.18058937]
[1693515018828,0.15009735,216.75,216.47,0.07524716]
[1693515019028,0.07504867,216.72,216.48,0.18087533]
[1693515020224,0.07504867,216.72,216.47,0.18087533]
[1693515020428,0.07504867,216.72,216.48,0.18087533]
[1693515020624,0.07504867,216.74,216.47,0.18087533]
[1693515020929,0.07504867,216.74,216.48,0.18087533]
[1693515021123,0.07504867,216.74,216.44,0.07524716]
[1693515021124,0.07504867,216.74,216.49,0.18087533]
[1693515021330,0.07504867,216.74,216.45,0.18087533]
[1693515021529,0.07504867,216.74,216.46,0.18087533]
[1693515021725,0.07504867,216.76,216.45,0.18087533]
[1693515021929,0.07504867,216.76,216.46,0.18087533]
[1693515022126,0.07504867,216.76,216.44,0.18087533]
[1693515022426,0.07504867,216.76,216.45,0.18087533]
[1693515022628,0.07504867,216.76,216.44,0.18087533]
[1693515023627,0.07504867,216.77,216.44,0.18087533]
[1693515023828,0.07504867,216.77,216.43,0.18087533]
[1693515024030,0.07504867,216.77,216.44,0.18087533]
[1693515024235,0.07504867,216.77,216.43,0.18087533]
[1693515024427,0.07504867,216.77,216.44,0.18087533]
[1693515024733,0.07504867,216.78,216.45,0.18087533]
[1693515024936,0.07504867,216.78,216.43,0.18087533]
[1693515025131,0.07504867,216.78,216.44,0.18087533]
[1693515025336,0.07504867,216.78,216.43,0.18087533]
[1693515026737,0.07504867,216.79,216.43,0.18087533]
[1693515026937,0.07504867,216.79,216.42,0.18087533]
[1693515027931,0.07504867,216.79,216.41,0.18087533]
[1693515029537,0.07504867,216.78,216.41,0.18087533]
[1693515029742,0.07504867,216.78,216.39,0.18087533]
[1693515029937,0.07504867,216.78,216.4,0.18087533]
[1693515030138,0.07504867,216.78,216.38,0.07524716]
[1693515030139,0.07504867,216.78,216.39,0.18087533]
[1693515030640,0.07504867,216.79,216.39,0.18087533]
[1693515036945,0.07504867,216.79,216.4,0.18087533]
[1693515037145,0.07504867,216.78,216.38,0.25612249]
[1693515037444,0.07504867,216.78,216.39,0.18087533]
[1693515037839,0.07504867,216.78,216.38,0.25612249]
[1693515038041,0.07504867,216.78,216.39,0.18087533]
[1693515038244,0.07504867,216.79,216.39,0.18087533]
[1693515038639,0.07504867,216.78,216.39,0.18087533]
[1693515039041,0.07504867,216.79,216.39,0.18087533]
[1693515039545,0.07504867,216.78,216.39,0.18087533]
[1693515039745,0.07504867,216.78,216.39,0.25612249]
[1693515039939,0.07504867,216.78,216.4,0.18087533]
[1693515042548,0.07504867,216.78,216.4,0.25612249]
[1693515042748,0.07504867,216.78,216.41,0.18087533]
[1693515043253,0.07504867,216.77,216.41,0.18087533]
[1693515043451,0.07504867,216.77,216.4,0.18087533]
[1693515043651,0.07504867,216.77,216.4,0.25612249]
[1693515043851,0.07504867,216.77,216.41,0.18087533]
[1693515045750,0.07504867,216.76,216.41,0.18087533]
[1693515047054,0.07504867,216.67,216.31,0.07524716]
[1693515047255,0.07504867,216.67,216.32,0.1812301]
[1693515047856,0.07504867,216.68,216.32,0.1812301]
[1693515048157,0.07504867,216.67,216.33,0.1812301]
[1693515048354,0.07504867,216.67,216.3,0.1812301]
[1693515048652,0.07504867,216.67,216.31,0.1812301]
[1693515049652,0.07504867,216.68,216.31,0.1812301]
[1693515050658,0.07504867,216.69,216.31,0.1812301]
[1693515051553,0.07504867,216.68,216.31,0.25647726]
[1693515051857,0.07504867,216.68,216.32,0.1812301]
[1693515052957,0.07504867,216.68,216.33,0.1812301]
[1693515053153,0.07504867,216.68,216.31,0.1812301]
[1693515053354,0.07504867,216.68,216.32,0.1812301]
[1693515053550,0.07504867,216.69,216.33,0.1812301]
[1693515053751,0.07504867,216.69,216.31,0.1812301]
[1693515053953,0.07504867,216.68,216.32,0.1812301]
[1693515054156,0.07504867,216.68,216.31,0.1812301]
[1693515054457,0.07504867,216.68,216.32,0.1812301]
[1693515054652,0.07504867,216.68,216.33,0.1812301]
[1693515054852,0.07504867,216.68,216.3,0.07524716]
[1693515054853,0.07504867,216.68,216.31,0.1812301]
[1693515055655,0.07504867,216.69,216.31,0.1812301]
[1693515055852,0.07504867,216.69,216.3,0.1812301]
[1693515057756,0.07504867,216.7,216.3,0.1812301]
[1693515058855,0.07504867,216.7,216.31,0.1812301]
[1693515059060,0.07504867,216.75,216.33,0.07524716]
[1693515059258,0.07504867,216.75,216.34,0.1812301]
[1693515059755,0.07504867,216.74,216.34,0.1812301]
[1693515059960,0.07504867,216.75,216.34,0.1812301]
[1693515060463,0.07504867,216.74,216.34,0.1812301]
[1693515061659,0.07504867,216.75,216.34,0.1812301]
[1693515062361,0.07504867,216.74,216.34,0.25647726]
[1693515062557,0.07504867,216.75,216.35,0.1812301]
[1693515062957,0.07504867,216.76,216.35,0.25647726]
[1693515063154,0.07504867,216.76,216.36,0.1812301]
[1693515064061,0.07504867,216.75,216.36,0.1812301]
[1693515065463,0.07504867,216.76,216.36,0.1812301]
[1693515067264,0.07504867,216.75,216.36,0.1812301]
[1693515067564,0.07504867,216.76,216.36,0.1812301]
[1693515068659,0.07504867,216.76,216.36,0.25647726]
[1693515068862,0.07504867,216.75,216.37,0.1812301]
[1693515069764,0.07504867,216.76,216.37,0.1812301]
[1693515070959,0.07504867,216.75,216.37,0.1812301]
[1693515072671,0.07504867,216.74,216.37,0.1812301]
[1693515072969,0.07504867,216.74,216.38,0.1812301]
[1693515073170,0.07504867,216.74,216.37,0.1812301]
[1693515073363,0.07504867,216.74,216.38,0.1812301]
[1693515073667,0.07504867,216.74,216.36,0.07524716]
[1693515073668,0.07504867,216.74,216.39,0.1812301]
[1693515073862,0.07504867,216.74,216.4,0.1812301]
[1693515074066,0.07504867,216.74,216.41,0.1812301]
[1693515074264,0.07504867,216.74,216.42,0.1812301]
[1693515074469,0.07504867,216.74,216.37,0.1812301]
[1693515074769,0.07504867,216.74,216.38,0.1812301]
[1693515074968,0.07504867,216.74,216.37,0.1812301]
[1693515075175,0.07504867,216.74,216.38,0.1812301]
[1693515075361,0.07504867,216.74,216.37,0.1812301]
[1693515075564,0.07504867,216.74,216.38,0.1812301]
[1693515075765,0.07504867,216.74,216.39,0.1812301]
[1693515075968,0.07504867,216.74,216.4,0.1812301]
[1693515076168,0.07504867,216.74,216.41,0.1812301]
[1693515076362,0.07504867,216.74,216.42,0.1812301]
[1693515076565,0.07504867,216.74,216.43,0.1812301]
[1693515076763,0.07504867,216.73,216.37,0.1812301]
[1693515076968,0.07504867,216.73,216.38,0.1812301]
[1693515077269,0.07504867,216.73,216.39,0.1812301]
[1693515077568,0.07504867,216.73,216.4,0.1812301]
[1693515077769,0.07504867,216.73,216.41,0.1812301]
[1693515077971,0.07504867,216.73,216.42,0.1812301]
[1693515078168,0.07504867,216.73,216.43,0.1812301]
[1693515078470,0.07504867,216.73,216.44,0.1812301]
[1693515078665,0.07504867,216.73,216.37,0.1812301]
[1693515078870,0.07504867,216.72,216.38,0.1812301]
[1693515079069,0.07504867,216.72,216.37,0.1812301]
[1693515079269,0.07504867,216.72,216.38,0.1812301]
[1693515079466,0.07504867,216.72,216.37,0.1812301]
[1693515079667,0.07504867,216.72,216.38,0.1812301]
[1693515079870,0.07504867,216.72,216.37,0.25647726]
[1693515080172,0.07504867,216.72,216.38,0.1812301]
[1693515081273,0.07504867,216.71,216.38,0.1812301]
[1693515082770,0.07504867,216.71,216.38,0.25647726]
[1693515082974,0.07504867,216.71,216.39,0.1812301]
[1693515084473,0.07504867,216.7,216.39,0.1812301]
[1693515086975,0.07504867,216.7,216.39,0.25647726]
[1693515087175,0.07504867,216.7,216.4,0.1812301]
[1693515087375,0.07504867,216.7,216.41,0.1812301]
[1693515087676,0.07504867,216.69,216.42,0.1812301]
[1693515087877,0.07504867,216.69,216.43,0.1812301]
[1693515088176,0.07504867,216.69,216.15,1.00329553]
[1693515088177,0.07504867,216.65,216.34,0.07524716]
[1693515088378,0.07504867,216.64,216.35,0.18121973]
[1693515088777,0.07504867,216.65,216.35,0.18121973]
[1693515089077,0.07504867,216.65,216.36,0.18121973]
[1693515089277,0.07504867,216.65,216.37,0.18121973]
[1693515089472,0.07504867,216.65,216.38,0.18121973]
[1693515089672,0.07504867,216.65,216.39,0.18121973]
[1693515089876,0.07504867,216.65,216.4,0.18121973]
[1693515090178,0.07504867,216.65,216.33,0.07524716]
[1693515090372,0.07504867,216.65,216.34,0.25644634]
[1693515090571,0.07504867,216.65,216.35,0.18119918]
[1693515090777,0.07504867,216.7,216.39,0.07524716]
[1693515090971,0.07504867,216.7,216.4,0.18119918]
[1693515091171,0.07504867,216.71,216.4,0.25644634]
[1693515091378,0.07504867,216.71,216.41,0.18119918]
[1693515092780,0.07504867,216.7,216.41,0.25644634]
[1693515092978,0.07504867,216.7,216.42,0.18119918]
[1693515094480,0.07504867,216.69,216.42,0.18119918]
[1693515094681,0.07504867,216.69,216.41,0.18119918]
[1693515094881,0.07504867,216.69,216.4,0.07524716]
[1693515094882,0.07504867,216.69,216.42,0.18119918]
[1693515095077,0.07504867,216.69,216.41,0.18119918]
[1693515095477,0.15009735,216.71,216.41,0.18119918]
[1693515095478,0.07504867,216.68,216.41,0.18119918]
[1693515095773,0.07504867,216.69,216.41,0.18119918]
[1693515098383,0.07504867,216.68,216.41,0.18119918]
[1693515099578,0.07504867,216.64,216.35,0.07524716]
[1693515099782,0.07504867,216.63,216.36,0.18121613]
[1693515100881,0.07504867,216.64,216.36,0.18121613]
[1693515101683,0.07504867,216.64,216.35,0.18121613]
[1693515101884,0.07504867,216.64,216.36,0.18121613]
[1693515102183,0.07504867,216.64,216.37,0.18121613]
[1693515102384,0.07504867,216.64,216.35,0.18121613]
[1693515102598,0.07504867,216.64,216.36,0.18121613]
[1693515102784,0.07504867,216.64,216.35,0.18121613]
[1693515102983,0.07504867,216.65,216.36,0.18121613]
[1693515103183,0.07504867,216.65,216.34,0.18121613]
[1693515103378,0.07504867,216.65,216.35,0.18121613]
[1693515103576,0.07504867,216.64,216.36,0.18121613]
[1693515103781,0.07504867,216.64,216.37,0.18121613]
[1693515103981,0.07504867,216.64,216.38,0.18121613]
[1693515104283,0.07504867,216.64,216.39,0.18121613]
[1693515104480,0.07504867,216.64,216.32,0.07524716]
[1693515104779,0.07504867,216.64,216.33,0.18120855]
[1693515104980,0.07504867,216.65,216.33,0.18120855]
[1693515105284,0.07504867,216.64,216.33,0.18120855]
[1693515105484,0.07504867,216.63,216.33,0.18120855]
[1693515105785,0.07504867,216.63,216.34,0.18120855]
[1693515105987,0.07504867,216.64,216.3,0.07524716]
[1693515106185,0.07504867,216.64,216.31,0.18120855]
[1693515106381,0.07504867,216.65,216.31,0.25645571]
[1693515106587,0.07504867,216.66,216.32,0.25645571]
[1693515106780,0.07504867,216.66,216.26,0.15049432]
[1693515106781,0.07504867,216.66,216.33,0.25645571]
[1693515106983,0.07504867,216.66,216.34,0.18120855]